[Event "III Menorca Open-A 2024"]
[Site "Ciutadella Menorca"]
[Date "2024.04.03"]
[Round "2.7"]
[White "Pichot, Alan"]
[Black "Heimann, Mark"]
[Result "1-0"]
[ECO "C54"]
[WhiteElo "2644"]
[BlackElo "2435"]
[Annotator "TA"]
[PlyCount "101"]
[EventDate "2024.04.02"]
[EventType "swiss"]
[EventCountry "ESP"]
[SourceTitle "playchess.com"]
[Source "ChessBase"]
[SourceQuality "1"]
[TimeControl "5400+30"]

{[%evp 13,101,18,0,2,16,8,31,1,19,25,33,36,35,34,43,37,47,33,41,41,34,-8,-6,-8,0,0,0,0,0,0,0,0,0,2,0,-20,-6,-34,0,0,4,8,48,46,62,68,62,62,74,41,49,12,87,86,110,106,69,81,65,87,96,97,287,286,342,342,342,342,342,350,391,342,373,395,397,397,374,250,1027,1050,1263,891,1184,1207,1220,1139,1806,1429,1386,1313]} 1. e4 {[%emt 0:00:20]} e5 {[%emt 0:00:03]} 2. Nf3 {[%emt 0:00:21]} Nc6 {[%emt 0:00:04]} 3. Bc4 {[%emt 0:01:29]} Bc5 {[%emt 0:00:05]} 4. d3 {[%emt 0:00:25]} Nf6 {[%emt 0:00:05]} 5. Bg5 {[%emt 0:00:54]} h6 {[%emt 0:00:09]} 6. Bh4 {[%emt 0:00:06]} d6 {[%emt 0:00:05]} 7. c3 {[%emt 0:00:56]} a6 {[%emt 0:00:21]} 8. a4 {[%emt 0:01:02]} Ba7 {[%emt 0:00:17]} 9. Nbd2 {[%emt 0:01:18]} Be6 {[%emt 0:00:16]} 10. b4 {[%emt 0:03:11][%cal Bb2b4,Bb4b5][%mdl 32] White is slightly better.} g5 {[%emt 0:07:33] [#] ...Bxc4 would now be deadly.} 11. Bg3 {[%emt 0:01:19]} Qd7 {[%emt 0:00:18]} 12. O-O {[%emt 0:11:39]} O-O {[%emt 0:00:34]} 13. Re1 {[%emt 0:02:17]} Rfe8 {[%emt 0:06:58]} 14. h3 {[%emt 0:13:24]} Rad8 {[%emt 0:07:28]} 15. b5 {[%emt 0:02:50]} Ne7 {[%emt 0:07:21]} 16. Bxe6 {[%emt 0:07:16]} Qxe6 {[%emt 0:01:27]} 17. Qb3 {[%emt 0:00:55]} Qxb3 {[%emt 0:06:48]} 18. Nxb3 {[%emt 0:00:21]} axb5 {[%emt 0:00:06]} 19. axb5 {[%emt 0:00:25]} Bb6 {[%emt 0:00:04]} 20. Nfd2 {[%emt 0:07:28]} Nd7 {[%emt 0:01:24][%cal Bf6d7,Bd7b6,Bb6a4][%mdl 32]} 21. Nc4 {[%emt 0:05:39]} f5 {[%emt 0:12:58]} 22. Nxb6 {[%emt 0:01:41]} Nxb6 {[%emt 0:00:10]} 23. f3 {[%emt 0:00:28]} Ra8 {[%emt 0:00:38]} 24. Kf1 {[%emt 0:08:48]} fxe4 {[%emt 0:05:04]} 25. fxe4 {[%emt 0:00:44]} Na4 {[%emt 0:00:44]} 26. Rec1 {[%emt 0:01:22]} c6 {[%emt 0:04:40]} 27. c4 {[%emt 0:00:59]} c5 {[%emt 0:08:10]} 28. Be1 {[%emt 0:01:57][%cal Bg3e1,Be1a5,Ba5d2,Bd2g5][%mdl 32]} Nb6 {[%emt 0:01:37]} 29. Ba5 {[%emt 0:01:12]} Nec8 {[%emt 0:08:34]} 30. Ke2 {[%emt 0:00:44][%cal Oh3h4]} Kf7 {[%emt 0:03:21]} 31. Nd2 {[%emt 0:05:03][%cal Oh3h4]} Nd7 {[%emt 0:00:56]} 32. Nf3 {[%emt 0:09:33]} b6 {[%emt 0:00:58]} (32... Nf8 $11 {remains equal.}) 33. Bd2 {[%emt 0:00:09]} Ne7 {[%emt 0:00:04]} 34. h4 {[%emt 0:00:44] White is more active.} g4 {[%emt 0:00:32]} 35. Nh2 {[%emt 0:00:14][%cal Bf3h2,Bh2f1,Bf1e3,Be3d1,Bd1c3,Bc3b5][%mdl 32]} h5 {[%emt 0:00:16]} 36. Nf1 {[%emt 0:00:24]} Ng6 {[%emt 0:00:29]} 37. g3 {[%emt 0:01:41] Repels Nf4+} Ne7 $2 {[%emt 0:02:59] [#] This costs Black the game.} (37... Ngf8 $16 {was worth a try.}) 38. Bg5 $1 $18 {[%emt 0:01:10]} Nf6 {[%emt 0:03:15]} 39. Ne3 {[%emt 0:00:31]} Nfg8 {[%emt 0:00:30]} 40. Nd1 {[%emt 0:02:19]} Kg6 {[%emt 0:04:41]} 41. Nc3 {[%emt 0:00:30]} Nf6 {[%emt 0:00:48]} 42. Rf1 {[%emt 0:00:49]} Neg8 {[%emt 0:01:00]} 43. Ra6 {[%emt 0:01:03]} Rxa6 {[%emt 0:00:42]} 44. bxa6 {[%emt 0:00:03][%cal Bb5a6,Ba6a7][%mdl 32] And now Bxf6 would win.} Ra8 {[%emt 0:00:03]} 45. Ra1 {[%emt 0:00:19] Threatens to win with Bxf6.} Kf7 {[%emt 0:00:24]} (45... Ne7 46. Ke3 Nc8 47. Bxf6 Kxf6) 46. Nb5 {[%emt 0:00:53] White is clearly winning.} Ne8 {[%emt 0:00:04]} 47. a7 {[%emt 0:00:36]} Ne7 {[%emt 0:02:17]} 48. Bxe7 {[%emt 0:01:19]} Kxe7 {[%emt 0:00:04]} 49. Ra6 {[%emt 0:00:05]} Kd7 {[%emt 0:00:51]} 50. Rxb6 {[%emt 0:00:06]} Kc8 {[%emt 0:00:04]} 51. Kd2 {[%emt 0:00:24] Weighted Error Value: White=0.09 (flawless) /Black=0.15 (very precise) .  Loses game:     	---       	Black=1      Mistake:       	---       	Black=2      Inaccurate:     	White=6     	Black=2      OK:         	White=19    	Black=19     Best:        	White=1     	Black=1      Strong:       	White=1     	---} 1-0

[Event "III Menorca Open-A 2024"]
[Site "Ciutadella Menorca"]
[Date "2024.04.03"]
[Round "2.8"]
[White "Warmerdam, Max"]
[Black "Vidyarthi, Vyom"]
[Result "1-0"]
[ECO "D26"]
[WhiteElo "2628"]
[BlackElo "2428"]
[Annotator "TA"]
[PlyCount "95"]
[EventDate "2024.04.02"]
[EventType "swiss"]
[EventCountry "ESP"]
[SourceTitle "playchess.com"]
[Source "ChessBase"]
[SourceQuality "1"]
[TimeControl "5400+30"]

{[%evp 20,95,61,40,37,26,45,25,31,27,40,31,40,43,61,58,46,38,98,57,63,0,24,25,159,160,164,151,160,157,152,150,161,167,228,227,202,144,147,154,154,152,145,119,185,184,216,236,225,228,354,338,347,337,268,250,237,194,210,185,197,181,198,189,1279,1279,1264,1123,1122,1049,29972,0,29986,29987,29993,29975,29947,5797]} 1. c4 {[%emt 0:03:48]} Nf6 {[%emt 0:01:56]} 2. Nc3 {[%emt 0:00:29]} e6 {[%emt 0:00:39]} 3. d4 {[%emt 0:01:39]} Bb4 {[%emt 0:00:22]} 4. e3 {[%emt 0:00:14]} O-O {[%emt 0:00:49]} 5. Bd3 {[%emt 0:00:16]} d5 {[%emt 0:00:53]} 6. a3 {[%emt 0:02:03]} dxc4 {[%emt 0:01:25]} 7. Bxc4 {[%emt 0:00:52]} Be7 {[%emt 0:01:07]} 8. Nf3 {[%emt 0:00:38][%cal Bg1f3,Bf3e5,Be5c6][%mdl 32]} c5 {[%emt 0:06:33]} 9. O-O {[%emt 0:00:44]} cxd4 {[%emt 0:03:41]} 10. exd4 {[%emt 0:01:01]} Nbd7 {[%emt 0:06:11]} 11. Re1 {[%emt 0:03:04]} Nb6 {[%emt 0:04:46]} 12. Bd3 {[%emt 0:13:12]} Nbd5 {[%emt 0:04:17]} 13. Ne5 {[%emt 0:01:04]} b6 {[%emt 0:04:16] White has an edge.} 14. Nc6 {[%emt 0:12:37]} Qd7 {[%emt 0:05:18]} 15. Nxd5 {[%emt 0:05:30]} Nxd5 {[%emt 0:00:34] [#]} 16. Qh5 $1 {[%emt 0:00:27][%csl Gd3][%cal Rh5h7]} g6 {[%emt 0:05:10]} (16... f5 17. Nxe7+) 17. Nxe7+ {[%emt 0:00:47]} Nxe7 {[%emt 0:00:06]} 18. Qh4 {[%emt 0:04:36] Bh6 would now be deadly.} f6 {[%emt 0:09:28]} (18... Nd5 $14) 19. Bc4 {[%emt 0:06:37] White has more active pieces.} Qc6 {[%emt 0:04:32]} 20. d5 {[%emt 0:02:03]} Nxd5 {[%emt 0:02:30]} 21. Bh6 {[%emt 0:01:08]} Bb7 {[%emt 0:11:49]} 22. Bxf8 $16 {[%emt 0:03:52] Black must now prevent Bh6. This pair of bishops is nice.} Nf4 {[%emt 0:00:37]} 23. Bf1 {[%emt 0:00:50]} (23. Qxf4 $2 Qxg2#) 23... g5 {[%emt 0:00:41]} 24. Qg3 {[%emt 0:03:56]} Rxf8 {[%emt 0:01:21]} 25. Rac1 {[%emt 0:00:50]} Qd5 {[%emt 0:04:19]} 26. Qe3 {[%emt 0:15:10]} Qf5 {[%emt 0:11:21]} (26... Rf7 $142) 27. g3 {[%emt 0:05:06]} Bd5 {[%emt 0:03:00]} 28. f3 {[%emt 0:06:58]} Nh3+ {[%emt 0:00:05]} 29. Bxh3 {[%emt 0:00:04]} Qxh3 {[%emt 0:00:02]} 30. Re2 {[%emt 0:00:23]} Qf5 {[%emt 0:02:01] Prevents Qd3} 31. Rc3 {[%emt 0:00:23]} Rd8 {[%emt 0:02:25]} (31... h5 $16 {keeps fighting.} 32. Rec2 e5) 32. g4 $36 {[%emt 0:01:13][%mdl 2048] White is really pushing.} Qb1+ {[%emt 0:00:57]} 33. Rc1 {[%emt 0:01:41][%cal Bc3c1,Bc1c8,Bc8d8,Bd8d7][%mdl 32]} Qg6 {[%emt 0:00:08]} 34. Rec2 {[%emt 0:00:04]} h5 {[%emt 0:00:48]} (34... Rd7 $142 35. Rc8+ Kg7) 35. Rc8 {[%emt 0:02:10]} Rxc8 {[%emt 0:00:34]} 36. Rxc8+ {[%emt 0:00:02][%mdl 4096] Endgame. KQR-KQB} Kg7 {[%emt 0:00:13]} 37. Qc1 {[%emt 0:00:34] Threatens to win with Qc7+.} e5 {[%emt 0:01:32]} 38. Rd8 {[%emt 0:01:13]} Bf7 {[%emt 0:00:49]} 39. h3 {[%emt 0:00:33][%cal Bh2h3,Bh3g4][%mdl 32]} hxg4 {[%emt 0:00:23]} 40. hxg4 {[%emt 0:00:04]} Qh7 {[%emt 0:00:09]} 41. Rd7 $1 {[%emt 0:02:06][%cal Oc1c4] Qc4! is the strong threat.} Qh3 $2 {[%emt 0:00:53] [#]} (41... b5 42. Qd1 (42. Rxa7 Qd3 $16) 42... a5) 42. Qc4 $1 {[%emt 0:00:40]} (42. Rxa7 Qg3+ (42... Qxf3 43. Qc4 $11) 43. Kf1 Qxf3+ 44. Ke1 Qh1+ (44... Qxg4 45. Qe3 $19) 45. Kd2 Qg2+ (45... Qxc1+ 46. Kxc1 Kg6 47. Kd2 $14) 46. Kd3 Qxg4 $11) 42... Qg3+ {[%emt 0:00:38]} 43. Kf1 {[%emt 0:00:01]} Qxf3+ {[%emt 0:00:41]} 44. Ke1 {[%emt 0:00:02]} Qh1+ {[%emt 0:00:49]} 45. Kd2 {[%emt 0:00:22]} Qh2+ $2 {[%emt 0:01:17][%mdl 8192] [#]} (45... Qg2+ $11 46. Kc3 Kh8) 46. Kc3 $1 {[%emt 0:00:22] White mates.} Qg3+ {[%emt 0:00:21]} 47. Kb4 {[%emt 0:00:27]} Qe1+ {[%emt 0:00:15]} 48. Kb3 {[%emt 0:00:36] Weighted Error Value: White=0.08 (flawless) /Black=0.52.  Mistake:       	---       	Black=6      Inaccurate:     	White=2     	---        OK:         	White=16    	Black=11     Best:        	White=2     	Black=2      Strong:       	White=2     	---} 1-0

[Event "III Menorca Open-A 2024"]
[Site "Ciutadella Menorca"]
[Date "2024.04.03"]
[Round "2.9"]
[White "Sousa, Andre Ventura"]
[Black "Murzin, Volodar"]
[Result "1/2-1/2"]
[ECO "D10"]
[WhiteElo "2426"]
[BlackElo "2632"]
[Annotator "TA"]
[PlyCount "126"]
[EventDate "2024.04.02"]
[EventType "swiss"]
[EventCountry "ESP"]
[SourceTitle "playchess.com"]
[Source "ChessBase"]
[SourceQuality "1"]
[TimeControl "5400+30"]

{[%evp 41,126,-20,0,-52,-48,-95,0,-18,0,0,0,0,0,0,0,0,0,0,0,0,0,0,0,0,0,0,0,0,0,0,0,0,0,-45,-43,-75,-8,-116,-106,-105,-109,-105,-105,-105,-105,-105,-105,-106,-35,-35,-35,-35,-41,-41,-41,-41,-41,-41,0,0,0,-41,-41,-41,-41,-41,0,-41,-41,-41,-8,-8,-8,-8,-8,-22,-24,-24,0,0,0,0,0,0,0,0,0]} 1. d4 {[%emt 0:00:03]} d5 {[%emt 0:03:58]} 2. Bf4 {[%emt 0:00:08]} Nf6 {[%emt 0:00:48]} 3. e3 {[%emt 0:00:06]} Bf5 {[%emt 0:04:20]} 4. c4 {[%emt 0:02:30]} c6 {[%emt 0:16:41]} 5. Nc3 {[%emt 0:04:48]} e6 {[%emt 0:01:47]} 6. Qb3 {[%emt 0:01:27] D10: Slav Defence: 3 cxd5 (without early Nf3) and 3 Nc3.} Qc8 {[%emt 0:00:15]} 7. Nf3 {[%emt 0:00:47]} Be7 {[%emt 0:01:04]} 8. Be2 {[%emt 0:00:23]} O-O {[%emt 0:01:09]} 9. Ne5 {[%emt 0:05:31]} Nbd7 {[%emt 0:01:31]} 10. O-O {[%emt 0:06:04]} Nxe5 $146 {[%emt 0:07:08]} ({Predecessor:} 10... Ne4 11. Rfc1 Ndf6 12. cxd5 exd5 13. h3 Nxc3 14. bxc3 c5 15. Qd1 c4 {½-½ Molnar,L (1401)-Vida,G (1458) HUN-ch U18 Girls 2020 (6)}) 11. Bxe5 {[%emt 0:00:15]} Ne4 {[%emt 0:02:53]} 12. Nxe4 {[%emt 0:00:23]} Bxe4 {[%emt 0:00:02]} 13. c5 {[%emt 0:04:19]} Bd8 {[%emt 0:05:12]} 14. Qc3 {[%emt 0:01:51]} Bc7 {[%emt 0:07:51]} 15. Bxc7 {[%emt 0:07:25]} Qxc7 {[%emt 0:00:25]} 16. b4 {[%emt 0:00:07]} Rfe8 {[%emt 0:02:02]} 17. a4 {[%emt 0:22:15]} e5 {[%emt 0:00:54]} 18. Ra2 {[%emt 0:01:27]} Re6 {[%emt 0:05:31]} 19. dxe5 {[%emt 0:03:43]} Rxe5 {[%emt 0:01:49]} 20. b5 {[%emt 0:02:13]} Re6 {[%emt 0:05:32]} 21. Bd3 {[%emt 0:08:06]} Rae8 {[%emt 0:09:26]} (21... Bxd3 {simplifies} 22. Qxd3 Re4 23. Rb1 Rc4) 22. bxc6 {[%emt 0:07:45]} (22. Rd2 $11) 22... Rxc6 $15 {[%emt 0:04:24]} 23. Bb5 {[%emt 0:04:45] [#]} (23. Rc2 $15 {feels stronger.}) 23... Rh6 {[%emt 0:09:10]} (23... Rxc5 $1 $17 24. Qa1 (24. Qe1 Re6) 24... Re5) 24. h3 {[%emt 0:06:04]} Rc8 {[%emt 0:00:19]} (24... Bf3 $5 25. Rb1 (25. Bxe8 $2 Rg6 $19) 25... Rg6 $15) 25. Rd2 {[%emt 0:05:04]} Qxc5 {[%emt 0:04:54]} 26. Qxc5 {[%emt 0:00:15]} Rxc5 {[%emt 0:00:02]} 27. f3 {[%emt 0:00:14]} Bf5 {[%emt 0:00:19]} 28. e4 $1 {[%emt 0:00:39]} a6 $1 {[%emt 0:00:05]} (28... dxe4 29. Rd8#) 29. Be2 {[%emt 0:01:45]} Bd7 {[%emt 0:01:52]} (29... dxe4 30. Rd8#) 30. Rb1 {[%emt 0:00:11]} b5 {[%emt 0:01:12]} 31. axb5 {[%emt 0:00:26]} axb5 {[%emt 0:00:18]} 32. Rxd5 {[%emt 0:00:48]} Rxd5 {[%emt 0:00:04]} 33. exd5 {[%emt 0:00:03]} Rb6 {[%emt 0:00:02]} 34. Kf2 {[%emt 0:00:46]} Kf8 {[%emt 0:00:09]} 35. Ke3 {[%emt 0:00:06]} Ke7 {[%emt 0:00:48]} 36. Kd4 {[%emt 0:00:04]} Kd6 {[%emt 0:00:04]} 37. Rb4 {[%emt 0:00:12]} Ra6 {[%emt 0:00:30]} 38. Bd3 {[%emt 0:01:40]} (38. Bxb5 $2 Rb6 39. Bxd7 Rxb4+ 40. Kc3 Rb1 $19) 38... h6 {[%emt 0:03:05]} (38... h5 $17) 39. f4 {[%emt 0:03:03]} (39. Bxb5 $2 Rb6 40. Bxd7 Rxb4+ 41. Kc3 Rb1 $19) (39. Rb3 $11) 39... Ra4 $17 {[%emt 0:00:24]} 40. Rxa4 {[%emt 0:00:03]} bxa4 {[%emt 0:00:02]} 41. h4 {[%emt 0:00:57]} f6 {[%emt 0:01:02]} 42. g3 {[%emt 0:00:11]} a3 {[%emt 0:00:46]} 43. Bc4 {[%emt 0:00:09]} Bf5 {[%emt 0:00:51]} 44. Ba2 {[%emt 0:00:03]} g6 {[%emt 0:01:07]} (44... Bc2 $17 45. Kc4 Be4) 45. Kc4 $1 $15 {[%emt 0:00:18]} Be4 {[%emt 0:00:16]} 46. Kd4 {[%emt 0:01:42]} Bf3 {[%emt 0:00:09]} 47. Bb3 {[%emt 0:00:12]} Bg4 {[%emt 0:00:15]} 48. Bc4 {[%emt 0:00:16]} Bf5 {[%emt 0:00:52]} 49. Ba2 {[%emt 0:00:03]} Bc2 {[%emt 0:00:56]} 50. Kc3 {[%emt 0:00:09]} Be4 {[%emt 0:00:05]} 51. Kd4 {[%emt 0:00:03]} Bg2 {[%emt 0:00:41]} 52. Bc4 {[%emt 0:00:10]} Bh3 {[%emt 0:00:49]} 53. Ba2 {[%emt 0:00:06]} Bg4 {[%emt 0:00:11]} 54. Kc4 {[%emt 0:00:28]} Bf3 {[%emt 0:00:08]} 55. Kd4 {[%emt 0:00:45]} f5 {[%emt 0:01:05]} 56. Bb3 {[%emt 0:00:15]} Bd1 {[%emt 0:00:28]} (56... Be4 $5 57. Ba2 $8 Bc2 $11) 57. Ba2 {[%emt 0:00:14]} (57. Bxd1 $2 {perishes.} a2 58. Kd3 a1=Q $19 (58... a1=B 59. Bf3 $11)) 57... Bc2 {[%emt 0:00:32]} 58. Kc3 {[%emt 0:00:17]} Be4 {[%emt 0:00:09]} 59. Kd4 {[%emt 0:00:01]} h5 {[%emt 0:00:10]} 60. Bb3 {[%emt 0:00:18]} Bb1 {[%emt 0:00:58]} 61. Kc3 {[%emt 0:00:02]} Be4 {[%emt 0:00:33]} (61... a2 $5 62. Kb2 $8 Be4 (62... Kc5 63. d6 $11) 63. Bxa2 Bxd5 $11) 62. Kd4 $1 {[%emt 0:00:06]} Bb1 {[%emt 0:00:39]} 63. Kc3 {[%emt 0:00:03]} Be4 {[%emt 0:00:17]} (63... a2 $5 64. Kb2 $8 Be4 (64... Kc5 65. d6 $11) 65. Bxa2 Bxd5 $11) 1/2-1/2

[Event "III Menorca Open-A 2024"]
[Site "Ciutadella Menorca"]
[Date "2024.04.03"]
[Round "2.10"]
[White "Aryan Chopra"]
[Black "Kalogeris, Ioannis"]
[Result "1-0"]
[ECO "C54"]
[WhiteElo "2630"]
[BlackElo "2427"]
[Annotator "TA"]
[PlyCount "87"]
[EventDate "2024.04.02"]
[EventType "swiss"]
[EventCountry "ESP"]
[SourceTitle "playchess.com"]
[Source "ChessBase"]
[SourceQuality "1"]
[TimeControl "5400+30"]

{[%evp 12,87,21,8,7,3,19,0,0,0,5,0,-17,-4,-8,0,-7,-14,0,2,50,20,62,48,133,80,131,115,100,105,89,94,113,120,98,77,119,103,110,109,104,109,105,112,89,59,108,45,39,31,86,37,156,159,272,170,365,337,394,413,389,409,384,367,461,454,585,553,582,586,956,878,1720,897,29975,9280,29989,29990]} 1. e4 {[%emt 0:00:04]} e5 {[%emt 0:01:25]} 2. Nf3 {[%emt 0:00:06]} Nc6 {[%emt 0:00:09]} 3. Bc4 {[%emt 0:00:06]} Bc5 {[%emt 0:00:20]} 4. c3 {[%emt 0:00:08]} Nf6 {[%emt 0:00:10]} 5. d3 {[%emt 0:00:18]} d6 {[%emt 0:00:44]} 6. O-O {[%emt 0:00:15]} O-O {[%emt 0:01:32]} 7. h3 {[%emt 0:00:12]} a5 {[%emt 0:01:08]} 8. Re1 {[%emt 0:00:41]} Ba7 {[%emt 0:04:40]} 9. Na3 {[%emt 0:02:18]} Ne7 {[%emt 0:02:05] The position is equal.} 10. d4 {[%emt 0:10:48]} Ng6 {[%emt 0:13:20]} 11. Be3 {[%emt 0:12:14]} c6 {[%emt 0:03:17]} 12. Bd3 {[%emt 0:00:49]} (12. dxe5 {seems wilder.} dxe5 13. Qxd8 Rxd8 14. Rad1) 12... Re8 {[%emt 0:10:17]} 13. Qc2 {[%emt 0:02:23]} b5 {[%emt 0:05:52]} 14. Rad1 {[%emt 0:01:57]} Qe7 {[%emt 0:05:19]} 15. Nb1 {[%emt 0:04:57]} Nh5 {[%emt 0:01:22]} (15... a4 $11) 16. Nbd2 {[%emt 0:05:28]} Ngf4 {[%emt 0:01:33]} 17. Bf1 {[%emt 0:02:16]} g5 {[%emt 0:06:23]} (17... Ng6 $1 $14) 18. Nh2 {[%emt 0:06:53]} (18. a4 $142) 18... Nf6 {[%emt 0:04:24]} ({Better is} 18... h6) 19. Ndf3 {[%emt 0:04:24]} h6 {[%emt 0:00:32]} 20. c4 {[%emt 0:01:19]} bxc4 {[%emt 0:03:02]} 21. Bxc4 {[%emt 0:00:48][%cal Bf1c4,Bc4b3,Bb3a4][%mdl 32]} Kh8 {[%emt 0:05:28]} 22. Bb3 {[%emt 0:18:45]} Bd7 {[%emt 0:05:43]} 23. Ba4 {[%emt 0:02:52]} Rec8 {[%emt 0:01:13]} 24. a3 {[%emt 0:06:34]} Ng6 {[%emt 0:01:51]} 25. dxe5 {[%emt 0:01:39]} dxe5 {[%emt 0:00:26]} 26. Bxa7 {[%emt 0:03:57]} Rxa7 {[%emt 0:00:02]} 27. Qc3 {[%emt 0:00:06]} Rg8 {[%emt 0:04:20]} 28. Nd2 {[%emt 0:01:51][%cal Od2c4]} (28. Bxc6 $2 Rc7 29. Rxd7 Nxd7 $19) 28... Kh7 {[%emt 0:02:56]} (28... c5 $14 29. Bxd7 Rxd7) 29. Nc4 {[%emt 0:02:39]} (29. Bxc6 $2 Rc8 30. Qe3 Bxc6 $19) (29. Nhf3 $16) 29... g4 $14 {[%emt 0:00:16]} 30. hxg4 {[%emt 0:00:36]} Bxg4 {[%emt 0:01:13] [#]} ({Black should play} 30... Nxg4 $14 31. g3 (31. Nxa5 $2 Nxh2 32. g3 Qf6 $19) 31... Nxh2 32. Kxh2 Qe6 33. Rxd7 (33. Nxa5 $2 Qh3+ 34. Kg1 Nh4 35. Nxc6 Qg2#) 33... Rxd7) 31. Rd2 {[%emt 0:00:36]} (31. Rc1 $1 $16) 31... Rg7 {[%emt 0:06:58]} ({Black should try} 31... Rd7 $1 $14) 32. g3 $36 {[%emt 0:01:10][%mdl 2048] Black is under strong pressure.} (32. Bxc6 Rc7 33. Bd5 (33. Nxa5 Bd7 $11) 33... a4 $16) 32... Ra8 {[%emt 0:01:39]} (32... Rd7 $16 33. Bxc6 Rxd2 34. Qxd2 (34. Nxd2 Nf4 $16) 34... Be6) 33. Nd6 {[%emt 0:01:16][%cal Oh2g4] Hoping for Nxg4!} ({Don't play} 33. Nxa5 Qa7 $18) 33... Qa7 $2 {[%emt 0:02:21]} (33... Nh4 {was called for.} 34. Nc4 (34. gxh4 Rd8 $15) 34... Rag8 35. Bxc6 (35. gxh4 $2 {leads to mate.} Bf3+) 35... Be6) 34. Bxc6 {[%emt 0:03:56]} Rb8 {[%emt 0:01:55]} 35. Nxg4 {[%emt 0:01:06]} Nxg4 {[%emt 0:00:02]} 36. Nf5 {[%emt 0:00:07][%cal Oc3f3] Strongly threatening Qf3! Active counter play!} Rgg8 {[%emt 0:00:19]} 37. Qf3 {[%emt 0:00:32]} Nf4 {[%emt 0:02:28]} 38. gxf4 {[%emt 0:02:28]} Nxf2+ {[%emt 0:00:02]} 39. Kh2 {[%emt 0:00:54]} Ng4+ {[%emt 0:01:04]} 40. Kh1 {[%emt 0:00:20]} exf4 {[%emt 0:00:02]} 41. Rg2 {[%emt 0:00:34]} h5 {[%emt 0:00:50]} 42. Bd5 {[%emt 0:00:32][%cal Of3h3] aiming for Qh3!} Rg5 {[%emt 0:00:34]} 43. Qxf4 {[%emt 0:00:30]} Rbg8 {[%emt 0:00:09] [#]} 44. Rxg4 $1 {[%emt 0:01:06] Weighted Error Value: White=0.14 (very precise) /Black=0.74.  Mistake:       	White=3     	Black=8      Inaccurate:     	White=3     	Black=4      OK:         	White=12    	Black=9      Best:        	White=4     	Black=1} 1-0